bitfinex/quotes_BTCUSD_20250814
["timestamp","ask_amount","ask_price","bid_price","bid_amount"]
[1755164095411,1.28485409,121760.0,121750.0,0.001]
[1755164095623,1.28485409,121760.0,121750.0,0.126]
[1755164097530,1.28485409,121760.0,121750.0,0.001]
[1755164097763,1.28485409,121760.0,121750.0,0.126]
[1755164098174,0.80236087,121760.0,121750.0,0.126]
[1755164098392,1.28485409,121760.0,121750.0,0.126]
[1755164099473,1.28485409,121760.0,121750.0,0.001]
[1755164099709,1.28485409,121760.0,121750.0,0.126]
[1755164100506,1.28485409,121760.0,121750.0,0.001]
[1755164100916,1.30802409,121760.0,121750.0,0.126]
[1755164101222,0.16428454,121740.0,121730.0,0.003]
[1755164101426,0.73148101,121740.0,121730.0,0.128]
[1755164101637,0.75676792,121740.0,121730.0,0.128]
[1755164102974,0.78141192,121740.0,121730.0,0.128]
[1755164103758,0.78241192,121740.0,121730.0,0.128]
[1755164104900,0.83030895,121740.0,121730.0,0.128]
[1755164105607,0.78241192,121740.0,121730.0,0.128]
[1755164107577,0.78241192,121740.0,121730.0,0.003]
[1755164107796,0.78241192,121740.0,121730.0,0.128]
[1755164112351,0.79773899,121740.0,121730.0,0.128]
[1755164113784,0.79773899,121740.0,121730.0,0.003]
[1755164113958,0.79773899,121740.0,121730.0,0.128]
[1755164114175,0.79773634,121740.0,121730.0,0.128]
[1755164116133,0.79773634,121740.0,121730.0,0.003]
[1755164116406,1.22022077,121740.0,121730.0,0.128]
[1755164116848,1.22022077,121740.0,121730.0,0.003]
[1755164117053,1.22022077,121740.0,121730.0,1e-08]
[1755164117257,1.19792386,121740.0,121730.0,1e-08]
[1755164117462,1.22022077,121740.0,121730.0,1e-08]
[1755164117663,1.36900077,121740.0,121730.0,1e-08]
[1755164118463,1.24400077,121740.0,121730.0,1e-08]
[1755164118679,1.36800077,121740.0,121730.0,1e-08]
[1755164118871,1.37000077,121740.0,121730.0,1e-08]
[1755164119440,1.28751634,121740.0,121730.0,1e-08]
[1755164119643,1.28851634,121740.0,121730.0,1e-08]
[1755164119851,1.28850822,121740.0,121730.0,1e-08]
[1755164122826,1.28851143,121740.0,121730.0,1e-08]
[1755164125604,1.16351143,121740.0,121730.0,1e-08]
[1755164125820,1.28851143,121740.0,121730.0,1e-08]
[1755164126408,1.37099586,121740.0,121730.0,1e-08]
[1755164128908,1.2881662,121740.0,121730.0,1e-08]
[1755164129115,1.2643862,121740.0,121730.0,1e-08]
[1755164154484,1.23711656,121740.0,121730.0,0.00517001]
[1755164155142,1.11219656,121740.0,121730.0,0.00517001]
[1755164155350,0.89711656,121740.0,121730.0,0.00517001]
[1755164155557,0.37458256,121740.0,121730.0,0.00517001]
[1755164155767,0.86224578,121740.0,121730.0,0.00517001]
[1755164155996,0.37975256,121740.0,121730.0,0.00517001]
[1755164156201,0.85707578,121740.0,121730.0,0.00517001]
[1755164156632,0.86252978,121740.0,121730.0,0.00517001]
[1755164157137,0.85707578,121740.0,121730.0,0.00517001]
[1755164157509,0.73215578,121740.0,121730.0,0.00517001]
[1755164158152,0.64943253,121740.0,121730.0,0.00517001]
[1755164158586,0.64843253,121740.0,121730.0,0.00517001]
[1755164158792,0.64643253,121740.0,121730.0,0.00517001]
[1755164159017,0.64843253,121740.0,121730.0,0.00517001]
[1755164163436,0.75598991,121740.0,121730.0,0.00215001]
[1755164164981,0.75598991,121740.0,121730.0,1e-08]
[1755164165181,0.88387991,121740.0,121730.0,1e-08]
[1755164166357,0.75899991,121740.0,121730.0,1e-08]
[1755164166509,0.88387991,121740.0,121730.0,1e-08]
[1755164167568,1.22387991,121740.0,121730.0,1e-08]
[1755164169037,1.09899991,121740.0,121730.0,1e-08]
[1755164169246,1.22989991,121740.0,121730.0,1e-08]
[1755164171875,1.25116027,121740.0,121730.0,1e-08]
[1755164172433,0.64378705,121740.0,121730.0,1e-08]
[1755164172643,1.25112027,121740.0,121730.0,1e-08]
[1755164178297,1.12628027,121740.0,121730.0,1e-08]
[1755164178640,1.25112027,121740.0,121730.0,1e-08]
[1755164180208,0.63876705,121740.0,121730.0,0.00511001]
[1755164180407,0.73115578,121740.0,121730.0,0.00511001]
[1755164182977,0.64843253,121740.0,121730.0,0.00511001]
[1755164183195,0.48449322,121740.0,121730.0,0.00511001]
[1755164183451,0.002,121740.0,121730.0,0.00716373]
[1755164183652,0.48449322,121740.0,121730.0,0.00716373]
[1755164184325,0.64777776,121740.0,121730.0,0.00511001]
[1755164184531,0.64677776,121740.0,121730.0,0.00511001]
[1755164184914,0.64677776,121740.0,121730.0,0.00611001]
[1755164185288,0.64677776,121740.0,121730.0,0.00711001]
[1755164186031,0.66960189,121740.0,121730.0,0.00711001]
[1755164187224,0.75429514,121740.0,121730.0,0.00401001]
[1755164187426,0.75429514,121740.0,121730.0,0.00200001]
[1755164187427,0.82436285,121740.0,121730.0,0.00200001]
[1755164188194,0.82436285,121740.0,121730.0,0.00100001]
[1755164188392,0.82436285,121740.0,121730.0,1e-08]
[1755164189720,1.16436285,121740.0,121730.0,1e-08]
[1755164189903,1.29348285,121740.0,121730.0,1e-08]
[1755164190108,1.29958285,121740.0,121730.0,1e-08]
[1755164190683,1.27156872,121740.0,121730.0,0.00201001]
[1755164190800,1.27367872,121740.0,121730.0,1e-08]
[1755164191000,1.14455872,121740.0,121730.0,1e-08]
[1755164191625,1.14778872,121740.0,121730.0,1e-08]
[1755164191971,1.16901366,121740.0,121730.0,1e-08]
[1755164192391,1.14778872,121740.0,121730.0,1e-08]
[1755164192599,1.27088872,121740.0,121730.0,1e-08]
[1755164192897,1.27698872,121740.0,121730.0,1e-08]
[1755164194168,1.21014101,121740.0,121730.0,1e-08]
[1755164194369,1.21014101,121740.0,121730.0,0.00201001]
[1755164194370,1.07771101,121740.0,121730.0,0.00201001]
[1755164194572,1.07771101,121740.0,121730.0,0.00511001]
[1755164194773,1.07771101,121740.0,121730.0,0.00201001]
[1755164195159,1.07771101,121740.0,121730.0,1e-08]
[1755164195401,1.07972101,121740.0,121730.0,1e-08]
[1755164196313,0.59722779,121740.0,121730.0,1e-08]
[1755164196518,1.07972101,121740.0,121730.0,1e-08]
[1755164196742,1.07771101,121740.0,121730.0,0.00214001]
[1755164196955,1.06950101,121740.0,121730.0,0.00532001]
[1755164199983,1.07158101,121740.0,121730.0,0.00532001]
[1755164201455,0.72950101,121740.0,121730.0,0.00532001]
[1755164205646,0.73158101,121740.0,121730.0,0.00532001]
[1755164206750,0.72950101,121740.0,121730.0,0.00532001]
[1755164207888,0.73158101,121740.0,121730.0,0.00532001]
[1755164208964,0.73158101,121740.0,121730.0,0.00214001]
[1755164209198,0.73455101,121740.0,121730.0,1e-08]
[1755164209430,0.78024892,121740.0,121730.0,1e-08]
[1755164210364,0.75737514,121740.0,121730.0,1e-08]
[1755164214449,0.73455101,121740.0,121730.0,1e-08]
[1755164217682,1.07455101,121740.0,121730.0,1e-08]
[1755164217885,1.15703544,121740.0,121730.0,1e-08]
[1755164218090,1.16361544,121740.0,121730.0,1e-08]
[1755164219158,0.82361544,121740.0,121730.0,1e-08]
[1755164219374,1.08113101,121740.0,121730.0,1e-08]
[1755164220842,1.10395514,121740.0,121730.0,1e-08]
[1755164221042,1.76283214,121740.0,121730.0,1e-08]
[1755164221465,1.77829795,121740.0,121730.0,1e-08]
[1755164221670,1.86078238,121740.0,121730.0,1e-08]
[1755164221907,1.73154238,121740.0,121730.0,1e-08]
[1755164222113,1.86186238,121740.0,121730.0,1e-08]
[1755164222523,1.86386238,121740.0,121730.0,1e-08]
[1755164222739,0.16429803,121730.0,121720.0,1e-08]
[1755164222943,0.16431153,121720.0,121710.0,1e-08]
[1755164223150,1.34647122,121720.0,121710.0,1e-08]
[1755164223361,1.23989535,121720.0,121710.0,1e-08]
[1755164223518,1.36933535,121720.0,121710.0,1e-08]
[1755164223727,1.36945535,121720.0,121710.0,1e-08]
[1755164223936,1.3065514,121720.0,121710.0,1e-08]
[1755164224361,1.4361514,121720.0,121710.0,1e-08]
[1755164224709,1.47282059,121720.0,121710.0,1e-08]
[1755164225902,1.47382059,121720.0,121710.0,1e-08]
[1755164226900,1.34422059,121720.0,121710.0,1e-08]
[1755164227101,1.47382059,121720.0,121710.0,1e-08]
[1755164227883,1.34422059,121720.0,121710.0,1e-08]
[1755164228087,1.47382059,121720.0,121710.0,1e-08]
[1755164228709,1.47722059,121720.0,121710.0,1e-08]
[1755164229893,1.47718059,121720.0,121710.0,1e-08]
[1755164230190,1.34762059,121720.0,121710.0,1e-08]
[1755164230442,1.34262059,121720.0,121710.0,1e-08]
[1755164230638,1.47222059,121720.0,121710.0,1e-08]
[1755164235086,1.5390683,121720.0,121710.0,1e-08]
[1755164235284,1.46932497,121700.0,121690.0,1e-08]
[1755164235613,1.79242678,121700.0,121690.0,1e-08]
[1755164236016,1.79891678,121700.0,121690.0,1e-08]
[1755164236435,1.66903678,121700.0,121690.0,1e-08]
[1755164236643,1.79907678,121700.0,121690.0,1e-08]
[1755164236843,1.80107678,121700.0,121690.0,1e-08]
[1755164238910,1.80207678,121700.0,121690.0,1e-08]
[1755164242451,1.79884678,121700.0,121690.0,1e-08]
[1755164242655,1.81419792,121700.0,121690.0,0.00198001]
[1755164242857,1.79137379,121700.0,121690.0,0.00198001]
[1755164243073,1.66133379,121700.0,121690.0,0.00507001]
[1755164243296,1.65937379,121700.0,121690.0,0.00507001]
[1755164243495,1.57688936,121700.0,121690.0,0.00507001]
[1755164244115,1.57688729,121700.0,121690.0,0.00507001]
[1755164244712,0.61190085,121700.0,121690.0,0.00507001]
[1755164244869,1.57688729,121700.0,121690.0,0.00507001]
[1755164246049,1.57588729,121700.0,121690.0,0.00507001]
[1755164246343,1.65937172,121700.0,121690.0,0.00507001]
[1755164246556,1.65937172,121700.0,121690.0,1e-08]
[1755164246737,0.50435204,121690.0,121680.0,0.0034]
[1755164247059,1.09010758,121690.0,121680.0,0.0034]
[1755164248838,1.11293171,121690.0,121680.0,0.0034]
[1755164249118,1.19541614,121690.0,121680.0,0.0034]
[1755164249582,1.20375283,121690.0,121680.0,0.0034]
[1755164250418,1.10375283,121690.0,121680.0,0.0034]
[1755164252547,1.0809287,121690.0,121680.0,0.0034]
[1755164254577,1.23339461,121690.0,121680.0,0.0034]
[1755164254789,1.69350192,121690.0,121680.0,1e-08]
[1755164254997,1.1323681,121690.0,121680.0,1e-08]
[1755164255202,1.24010219,121690.0,121680.0,1e-08]
[1755164255817,1.74498132,121690.0,121680.0,1e-08]
[1755164256370,1.74698132,121690.0,121680.0,1e-08]
[1755164256847,0.16436554,121680.0,121670.0,1e-08]
[1755164256990,1.42635035,121680.0,121670.0,1e-08]
[1755164257214,1.42952035,121680.0,121670.0,1e-08]
[1755164258008,1.69542035,121680.0,121670.0,1e-08]
[1755164258415,1.56522035,121680.0,121670.0,1e-08]
[1755164258631,1.69546035,121680.0,121670.0,1e-08]
[1755164258829,1.56522035,121680.0,121670.0,1e-08]
[1755164258996,1.69546035,121680.0,121670.0,1e-08]
[1755164259437,1.90622035,121680.0,121670.0,1e-08]
[1755164262392,1.73196979,121680.0,121670.0,0.00213001]
[1755164262592,1.72879979,121680.0,121670.0,0.00213001]
[1755164262803,1.59855979,121680.0,121670.0,0.00213001]
[1755164263005,1.72883979,121680.0,121670.0,0.00213001]
[1755164263430,1.72862396,121680.0,121670.0,0.00213001]
[1755164263640,1.76484743,121680.0,121670.0,0.00213001]
[1755164264432,1.56584138,121680.0,121670.0,0.00532001]
[1755164264577,1.22584138,121680.0,121670.0,0.00532001]
[1755164268285,1.22284138,121680.0,121670.0,0.00532001]
[1755164268874,1.22491138,121680.0,121670.0,0.00532001]
[1755164269078,1.22808138,121680.0,121670.0,0.00213001]
[1755164269196,1.31056581,121680.0,121670.0,0.00213001]
[1755164270786,1.31058779,121680.0,121670.0,0.00213001]
[1755164271281,1.44102779,121680.0,121670.0,0.00213001]
[1755164272840,1.4634137,121680.0,121670.0,0.00213001]
[1755164273329,1.3329737,121680.0,121670.0,0.00213001]
[1755164273901,1.3329737,121680.0,121670.0,1e-08]
[1755164274895,1.31759999,121680.0,121670.0,1e-08]
[1755164275134,1.33298344,121680.0,121670.0,1e-08]
[1755164275384,1.46334344,121680.0,121670.0,1e-08]
[1755164276094,1.46244344,121680.0,121670.0,1e-08]
[1755164276648,1.46244643,121680.0,121670.0,1e-08]
[1755164280016,2.28493965,121680.0,121670.0,1e-08]
[1755164280422,2.29152965,121680.0,121670.0,1e-08]
[1755164281069,2.29160965,121680.0,121670.0,1e-08]
[1755164281274,2.31417314,121680.0,121670.0,1e-08]
[1755164281620,2.31421314,121680.0,121670.0,1e-08]
[1755164282308,0.16439256,121660.0,121650.0,0.0034]
[1755164282648,1.38734151,121660.0,121650.0,0.0034]
[1755164282649,1.41289742,121660.0,121650.0,0.0034]
[1755164283491,1.41289742,121660.0,121650.0,0.0044]
[1755164284124,1.41289742,121660.0,121650.0,0.0054]
[1755164284324,1.41289742,121660.0,121650.0,0.0044]
[1755164284539,1.41285742,121660.0,121650.0,0.0044]
[1755164284939,1.41289742,121660.0,121650.0,0.0034]
[1755164285314,1.41289742,121660.0,121650.0,0.0044]
[1755164286987,1.28241742,121660.0,121650.0,0.0044]
[1755164287202,1.41285742,121660.0,121650.0,0.0044]
[1755164287563,1.39047151,121660.0,121650.0,0.0044]
[1755164288595,0.42231507,121660.0,121650.0,0.00641]
[1755164288797,1.38730151,121660.0,121650.0,0.00641]
[1755164290240,1.39039151,121660.0,121650.0,0.00641]
[1755164290830,1.38730151,121660.0,121650.0,0.00641]
[1755164291060,1.25686151,121660.0,121650.0,0.00641]
[1755164291237,1.39043151,121660.0,121650.0,0.00641]
[1755164291418,1.39043151,121660.0,121650.0,0.0044]
[1755164292238,1.25995151,121660.0,121650.0,0.0044]
[1755164292442,1.39035151,121660.0,121650.0,0.0044]
[1755164294538,1.41273742,121660.0,121650.0,0.0044]
[1755164295076,1.75261742,121660.0,121650.0,0.0044]
[1755164295261,1.73023151,121660.0,121650.0,1e-08]
[1755164295464,1.75261742,121660.0,121650.0,1e-08]
[1755164296080,1.64490091,121660.0,121650.0,1e-08]
[1755164296282,1.77510091,121660.0,121650.0,1e-08]
[1755164296500,0.16440608,121650.0,121640.0,1e-08]
[1755164296718,1.45229611,121650.0,121640.0,1e-08]
[1755164297221,1.32209611,121650.0,121640.0,1e-08]
[1755164297835,1.79225611,121650.0,121640.0,1e-08]
[1755164298044,2.23515611,121650.0,121640.0,1e-08]
[1755164298446,1.75266289,121650.0,121640.0,1e-08]
[1755164298649,1.77522638,121650.0,121640.0,1e-08]
[1755164299065,1.64506638,121650.0,121640.0,1e-08]
[1755164299272,1.78121638,121650.0,121640.0,1e-08]
[1755164300484,0.2625,121630.0,121620.0,0.003]
[1755164300692,0.29552906,121630.0,121620.0,0.003]
[1755164300928,0.78111228,121630.0,121620.0,0.003]
[1755164301135,0.91111228,121630.0,121620.0,0.003]
[1755164301651,0.78111228,121630.0,121620.0,0.003]
[1755164302066,0.91111228,121630.0,121620.0,0.003]
[1755164302258,1.12111228,121630.0,121620.0,0.003]
[1755164302462,1.25111228,121630.0,121620.0,0.004]
[1755164302893,1.22868637,121630.0,121620.0,0.00601]
[1755164303524,1.22868637,121630.0,121620.0,0.005]
[1755164304285,1.22868637,121630.0,121620.0,0.003]
[1755164304656,1.09872637,121630.0,121620.0,0.003]
[1755164304848,1.22868637,121630.0,121620.0,0.003]
[1755164305230,1.09872637,121630.0,121620.0,0.003]
[1755164305441,1.22936637,121630.0,121620.0,0.003]
[1755164306284,1.7342455,121630.0,121620.0,0.003]
[1755164307288,1.25175228,121630.0,121620.0,0.003]
[1755164307499,1.7342455,121630.0,121620.0,0.003]
[1755164307925,0.16444663,121620.0,121610.0,0.1114]
[1755164308137,1.43043075,121620.0,121610.0,0.1114]
[1755164309692,1.29975075,121620.0,121610.0,0.1114]
[1755164309835,1.43039075,121620.0,121610.0,0.1114]
[1755164310229,1.45277666,121620.0,121610.0,0.1114]
[1755164310444,1.32213666,121620.0,121610.0,0.1114]
[1755164310648,1.45281666,121620.0,121610.0,0.1124]
[1755164310848,1.46094896,121620.0,121610.0,0.1144]
[1755164313042,1.33026896,121620.0,121610.0,0.1144]
[1755164313254,0.97524574,121620.0,121610.0,0.11641]
[1755164313463,0.97833574,121620.0,121610.0,0.11641]
[1755164313664,0.97833574,121620.0,121610.0,0.1144]
[1755164313863,0.95594983,121620.0,121610.0,0.1144]
[1755164314080,0.97833574,121620.0,121610.0,0.1144]
[1755164314281,1.43844305,121620.0,121610.0,0.1144]
[1755164315938,1.43844305,121620.0,121610.0,0.11641]
[1755164316150,0.33980661,121620.0,121610.0,0.11641]
[1755164316354,0.95281983,121620.0,121610.0,0.11641]
[1755164316757,0.82027983,121620.0,121610.0,0.11965]
[1755164323819,0.7377954,121620.0,121610.0,0.11965]
[1755164324024,0.65507215,121620.0,121610.0,0.11965]
[1755164324231,0.64693985,121620.0,121610.0,0.11965]
[1755164324447,0.64693985,121620.0,121610.0,0.24981]
[1755164325069,0.64693985,121620.0,121610.0,0.25081]
[1755164326658,0.64898985,121620.0,121610.0,0.11741]
[1755164326865,0.64898985,121620.0,121610.0,0.24749]
[1755164326866,0.74328394,121620.0,121610.0,0.24749]
[1755164327268,0.74328394,121620.0,121610.0,0.11741]
[1755164327476,0.75863368,121620.0,121610.0,0.11741]
[1755164327682,0.7810196,121620.0,121610.0,0.11741]
[1755164327842,1.24816308,121620.0,121610.0,0.11741]
[1755164328292,0.74011394,121620.0,121610.0,0.24741]
[1755164328498,0.73806394,121620.0,121610.0,0.24741]
[1755164328697,0.73806394,121620.0,121610.0,0.25065]
[1755164330931,0.75767458,121620.0,121610.0,0.24741]
[1755164331483,0.75767458,121620.0,121610.0,0.24729]
[1755164332033,1.2433378,121620.0,121610.0,0.24729]
[1755164332244,1.2433378,121620.0,121610.0,0.24528]
[1755164332939,1.24816308,121620.0,121610.0,0.24528]
[1755164333346,1.24816308,121620.0,121610.0,0.24729]
[1755164333567,1.22260716,121620.0,121610.0,0.24729]
[1755164334437,0.74011394,121620.0,121610.0,0.24729]
[1755164334866,1.22577716,121620.0,121610.0,0.24729]
[1755164335084,1.30826159,121620.0,121610.0,0.24528]
[1755164335882,0.82576837,121620.0,121610.0,0.24528]
[1755164336681,0.74328394,121620.0,121610.0,0.24528]
[1755164336944,1.22577716,121620.0,121610.0,0.24528]
[1755164337483,0.74328394,121620.0,121610.0,0.24729]
[1755164337722,0.74011394,121620.0,121610.0,0.25053]
[1755164338571,0.74328394,121620.0,121610.0,0.24729]
[1755164339078,0.82576837,121620.0,121610.0,0.24528]
[1755164339838,1.30826159,121620.0,121610.0,0.24528]
[1755164341796,1.33064751,121620.0,121610.0,0.24528]
[1755164342760,1.24816308,121620.0,121610.0,0.24528]
[1755164346595,1.24816308,121620.0,121610.0,0.1154]
[1755164346805,1.24816308,121620.0,121610.0,0.24484]
[1755164348264,0.74011394,121620.0,121610.0,0.24691]
[1755164348905,0.74306394,121620.0,121610.0,0.24484]
[1755164349119,0.82554837,121620.0,121610.0,0.24484]
[1755164349320,0.82554837,121620.0,121610.0,0.24691]
[1755164349529,0.82259837,121620.0,121610.0,0.24691]
[1755164349712,1.30804159,121620.0,121610.0,0.24691]
[1755164349968,1.30804159,121620.0,121610.0,0.24484]
[1755164356661,1.43724159,121620.0,121610.0,0.24484]
[1755164358487,1.30804159,121620.0,121610.0,0.1154]
[1755164358658,1.30804159,121620.0,121610.0,0.24452]
[1755164360195,1.33042751,121620.0,121610.0,0.24452]
[1755164360397,1.35509851,121620.0,121610.0,0.24452]
[1755164360601,1.48413851,121620.0,121610.0,0.24452]
[1755164361669,1.69509851,121620.0,121610.0,0.1154]
[1755164361935,1.82401851,121620.0,121610.0,0.1154]
[1755164362615,1.82401851,121620.0,121610.0,0.1144]
[1755164362960,1.82401851,121620.0,121610.0,0.1154]
[1755164363154,1.82401851,121620.0,121610.0,0.1134]
[1755164363358,1.82401851,121620.0,121610.0,0.1124]
[1755164363804,1.82401851,121620.0,121610.0,0.1144]
[1755164364014,1.82401851,121620.0,121610.0,0.1124]
[1755164364225,1.82401851,121620.0,121610.0,0.1134]
[1755164369906,1.82401851,121620.0,121600.0,0.13208]
[1755164369907,0.50446015,121610.0,121600.0,0.0034]
[1755164370115,1.64619181,121610.0,121600.0,0.13204]
[1755164370328,1.77483181,121610.0,121600.0,0.13204]
[1755164370768,1.79950581,121610.0,121600.0,0.13204]
[1755164371222,1.83561345,121610.0,121600.0,0.13204]
[1755164372199,1.83561345,121610.0,121600.0,0.13304]
[1755164372420,1.70697345,121610.0,121600.0,0.13304]
[1755164372640,1.70697345,121610.0,121600.0,0.13404]
[1755164374187,1.83553345,121610.0,121600.0,0.0054]
[1755164374820,1.83553345,121610.0,121600.0,0.0044]
[1755164375247,1.70697345,121610.0,121600.0,0.0044]
[1755164375456,0.76697368,121600.0,121590.0,0.0034]
[1755164375677,2.0276778,121600.0,121590.0,0.0034]
[1755164375890,2.0306278,121600.0,121590.0,0.0034]
[1755164376092,2.07768972,121600.0,121590.0,0.0034]
[1755164376744,2.07768972,121600.0,121590.0,0.0044]
[1755164376950,2.07768972,121600.0,121590.0,0.0054]
[1755164384161,2.07768972,121600.0,121590.0,0.00753]
[1755164384345,1.9268238,121600.0,121590.0,0.00753]
[1755164384595,2.0521538,121600.0,121590.0,0.00753]
[1755164385858,2.0551038,121600.0,121590.0,0.00753]
[1755164386449,1.9268238,121600.0,121590.0,0.00753]
[1755164386594,1.9238738,121600.0,121590.0,0.00753]
[1755164386817,0.87437293,121600.0,121590.0,0.00753]
[1755164387025,1.83935937,121600.0,121590.0,0.01072]
[1755164387220,1.57685937,121600.0,121590.0,0.01072]
[1755164389679,0.72969015,121600.0,121590.0,0.01072]
[1755164390908,1.21218337,121600.0,121590.0,0.01072]
[1755164392688,1.21725337,121600.0,121590.0,0.0054]
[1755164392899,1.21430337,121600.0,121590.0,0.00753]
[1755164393085,1.2967878,121600.0,121590.0,0.00753]
[1755164393622,1.2946678,121600.0,121590.0,0.01072]
[1755164394004,1.21218337,121600.0,121590.0,0.01072]
[1755164397850,1.21184143,121600.0,121590.0,0.00753]
[1755164398058,1.21184143,121600.0,121590.0,0.01072]
[1755164399080,0.24685499,121600.0,121590.0,0.01072]
[1755164399222,1.21184143,121600.0,121590.0,0.01072]
[1755164400942,1.21184143,121600.0,121590.0,0.00753]
[1755164401148,1.21396143,121600.0,121590.0,0.00753]
[1755164402387,1.29939586,121600.0,121590.0,0.0054]
[1755164406128,1.21691143,121600.0,121590.0,0.0054]
[1755164409896,1.23929735,121600.0,121590.0,0.0054]
[1755164412808,1.21691143,121600.0,121590.0,0.0054]
[1755164428108,1.21691143,121600.0,121590.0,0.00745]
[1755164431081,1.21691143,121600.0,121590.0,0.0054]
[1755164431210,1.29939586,121600.0,121590.0,0.0054]
[1755164435873,1.21691143,121600.0,121590.0,0.0054]
[1755164437820,1.21184143,121600.0,121590.0,0.00736]
[1755164438056,1.21184143,121600.0,121590.0,0.0106]
[1755164439479,1.21383143,121600.0,121590.0,0.00736]
[1755164443225,1.21677143,121600.0,121590.0,0.00736]
[1755164443864,1.24416719,121600.0,121590.0,0.00736]
[1755164444777,1.21677143,121600.0,121590.0,0.00736]
[1755164449164,1.21383143,121600.0,121590.0,0.00736]
[1755164449787,0.72934821,121600.0,121590.0,0.13796]
[1755164450322,0.24685499,121600.0,121590.0,0.13796]
[1755164450727,0.64662496,121600.0,121590.0,0.13796]
[1755164451882,0.6469669,121600.0,121590.0,0.15230163]
[1755164452085,0.6469669,121600.0,121590.0,0.13796]
[1755164453195,0.48249322,121600.0,121590.0,0.13796]
[1755164453399,0.20087369,121610.0,121590.0,0.13796]
[1755164453603,0.48249322,121600.0,121590.0,0.13472]
[1755164454185,0.48249322,121600.0,121590.0,0.13796]
[1755164454530,0.48249322,121600.0,121590.0,0.15682472]
[1755164454792,0.48249322,121600.0,121590.0,0.13901609]
[1755164454999,0.6469669,121600.0,121590.0,0.13696]
[1755164455194,0.6469669,121600.0,121590.0,0.13796]
[1755164455972,0.6469669,121600.0,121590.0,0.13696]
[1755164456185,0.6469669,121600.0,121590.0,0.13796]
[1755164456391,0.6469669,121600.0,121590.0,0.13696]
[1755164456803,0.48249322,121600.0,121590.0,0.13796]
[1755164457012,0.48249322,121600.0,121590.0,0.14207218]
[1755164457822,0.48249322,121600.0,121590.0,0.1590864]
[1755164458039,0.48249322,121600.0,121590.0,0.0317264]
[1755164458355,0.48249322,121600.0,121590.0,0.14207218]
[1755164459766,0.6469669,121600.0,121590.0,0.01471218]
[1755164459953,0.6469669,121600.0,121590.0,0.14207218]
[1755164460210,0.6469669,121600.0,121590.0,0.13796]
[1755164463277,0.6469669,121600.0,121590.0,0.13472]
[1755164463594,0.6489569,121600.0,121590.0,0.13472]
[1755164465661,1.21711337,121600.0,121590.0,0.0054]
[1755164465874,1.21711337,121600.0,121590.0,0.13272]
[1755164471161,0.73168015,121600.0,121590.0,0.13478]
[1755164471368,0.6489569,121600.0,121590.0,0.01047]
[1755164471578,0.6469669,121600.0,121590.0,0.01047]
[1755164471788,0.6469669,121600.0,121590.0,0.13779]
[1755164472612,0.6469669,121600.0,121590.0,0.13432338]
[1755164473836,0.6469669,121600.0,121590.0,0.00700338]
[1755164474030,0.6469669,121600.0,121590.0,0.13432338]
[1755164475587,0.6469669,121600.0,121590.0,0.00700338]
[1755164476015,0.6469669,121600.0,121590.0,0.13432338]
[1755164479935,0.16447368,121600.0,121590.0,0.13432338]
[1755164480148,0.48249322,121600.0,121590.0,0.13633947]
[1755164480563,0.48249322,121610.0,121590.0,0.34905947]
[1755164480764,0.26718667,121620.0,121600.0,0.00205592]
[1755164480973,0.48249322,121610.0,121600.0,0.00506592]
[1755164481178,0.48249322,121610.0,121600.0,0.13440592]
[1755164481805,0.48249322,121610.0,121600.0,0.13646184]
[1755164482438,0.48249322,121610.0,121600.0,0.00918184]
[1755164482649,0.24251667,121620.0,121600.0,0.13646184]
[1755164482854,0.48249322,121610.0,121600.0,0.13746184]
[1755164483076,0.48249322,121610.0,121600.0,0.52767472]
[1755164483287,0.48249322,121610.0,121600.0,0.39628288]
[1755164483495,0.48249322,121610.0,121600.0,0.498015]
[1755164484109,0.06984771,121620.0,121600.0,0.370735]
[1755164484318,0.48249322,121610.0,121600.0,0.494005]
[1755164484542,0.48249322,121610.0,121600.0,0.495005]
[1755164484959,0.48249322,121610.0,121600.0,0.499015]
[1755164485163,0.48249322,121610.0,121600.0,0.5489165]
[1755164485386,0.48249322,121610.0,121600.0,0.5479165]
[1755164485592,0.55234093,121620.0,121610.0,0.34]
[1755164485784,0.55234093,121620.0,121610.0,0.34206]
[1755164486012,0.55234093,121620.0,121610.0,0.34507]
[1755164486444,0.06984771,121620.0,121610.0,0.369734]
[1755164486661,0.55234093,121620.0,121610.0,0.09043148]
[1755164486861,0.55234093,121620.0,121610.0,0.1611255]
[1755164487067,0.55234093,121620.0,121610.0,0.1621255]
[1755164487601,0.55234093,121620.0,121610.0,0.0348455]
[1755164487806,0.55234093,121620.0,121610.0,0.1621255]
[1755164488123,0.55234093,121620.0,121610.0,0.0348455]
[1755164488482,0.55234093,121620.0,121610.0,0.1620855]
[1755164489094,0.55234093,121620.0,121610.0,0.0348455]
[1755164489308,0.55234093,121620.0,121610.0,0.1620855]
[1755164491275,0.55234093,121620.0,121610.0,0.18656638]
[1755164491433,0.55234093,121620.0,121610.0,0.157974]
[1755164491598,0.55234093,121620.0,121610.0,0.1620855]
[1755164492280,0.003,121620.0,121610.0,0.11756875]
[1755164492467,0.003,121620.0,121610.0,0.24480875]
[1755164492634,0.003,121620.0,121610.0,0.24069725]
[1755164492825,0.003,121620.0,121610.0,0.26476698]
[1755164493025,0.48549322,121620.0,121610.0,0.26476698]
[1755164493617,0.48549322,121620.0,121610.0,0.60476698]
[1755164494708,0.003,121620.0,121610.0,0.60476698]
[1755164494917,0.48549322,121620.0,121610.0,0.60476698]
[1755164495484,0.48549322,121620.0,121610.0,0.58069725]
[1755164495695,0.003,121620.0,121610.0,0.58069725]
[1755164497236,0.003,121620.0,121610.0,0.57969725]
[1755164497446,0.003,121620.0,121610.0,0.57965725]
[1755164497675,0.003,121620.0,121610.0,0.45445725]
[1755164497877,0.003,121620.0,121610.0,0.66414168]
[1755164498288,0.003,121620.0,121610.0,0.69833059]
[1755164498666,0.003,121620.0,121610.0,0.70233059]
[1755164498866,0.003,121620.0,121610.0,0.57513059]
[1755164499068,0.003,121620.0,121610.0,0.70133059]
[1755164499388,0.003,121620.0,121610.0,0.70433059]
[1755164499603,0.003,121620.0,121610.0,0.70133059]
[1755164499934,0.003,121620.0,121610.0,0.69833059]
[1755164500130,0.003,121620.0,121610.0,0.70233059]
[1755164501005,0.003,121620.0,121610.0,0.70433059]
[1755164501434,0.003,121620.0,121610.0,0.70233059]